fUSD/lending_fUSD_20240105
["ID","MTS","AMOUNT","RATE_DAILY","PERIOD"]
[310245169,1704414687960,-151.0,0.00038233,7]
[310245170,1704414687969,-150.0,0.00038234,2]
[310245171,1704414687979,-124596.0,0.00038235,30]
[310245172,1704414687988,-532.0,0.00038235,120]
[310245173,1704414687997,-5000.0,0.00038235,7]
[310245174,1704414688007,-1969.04870123,0.00038235,2]
[310245175,1704414688016,-3695.94523284,0.00038235,7]
[310245176,1704414688025,-159853.91473868,0.00038235,7]
[310245177,1704414688034,-2047.696329,0.00038235,30]
[310245178,1704414688043,-304.434167,0.00038235,30]
[310245179,1704414688053,-1962.663427,0.00038235,30]
[310245180,1704414688063,-155.05696804,0.0003825,14]
[310245181,1704414688072,-157.40105,0.00038298,2]
[310245182,1704414688082,-1357.69948116,0.00038356,30]
[310245183,1704414688091,-666.0,0.00038356,2]
[310245184,1704414688100,-500.0,0.00038356,2]
[310245185,1704414688109,-522.67,0.00038356,2]
[310245186,1704414688118,-512.12,0.00038356,2]
[310245187,1704414688127,-544.31,0.00038356,2]
[310245188,1704414688136,-500.0,0.00038356,2]
[310245189,1704414688146,-1124.47,0.00038356,2]
[310245190,1704414688155,-678.19,0.00038356,2]
[310245191,1704414688165,-500.0,0.00038356,2]
[310245192,1704414688175,-500.0,0.00038356,2]
[310245193,1704414688184,-750.66,0.00038356,2]
[310245194,1704414688194,-888.28,0.00038356,2]
[310245195,1704414688204,-723.54,0.00038356,2]
[310245196,1704414688214,-608.52,0.00038356,2]
[310245197,1704414688224,-500.0,0.00038356,2]
[310245198,1704414688234,-886.13,0.00038356,2]
[310245199,1704414688244,-501.68,0.00038356,2]
[310245200,1704414688253,-1517.74,0.00038356,2]
[310245201,1704414688263,-584.65,0.00038356,2]
[310245202,1704414688274,-939.87,0.00038356,2]
[310245203,1704414688283,-647.31,0.00038356,2]
[310245204,1704414688293,-2022.65,0.00038356,2]
[310245205,1704414688303,-919.18,0.00038356,2]
[310245206,1704414688312,-808.57,0.00038356,2]
[310245207,1704414688322,-1239.85,0.00038356,4]
[310245208,1704414688331,-695.92,0.00038356,2]
[310245209,1704414688341,-1527.38,0.00038356,2]
[310245210,1704414688350,-970.8,0.00038356,2]
[310245211,1704414688360,-893.29,0.00038356,2]
[310245212,1704414688369,-6653.01,0.00038356,2]
[310245213,1704414688379,-1177.25,0.00038356,2]
[310245214,1704414688389,-1817.42,0.00038356,2]
[310245215,1704414688400,-1325.73,0.00038356,2]
[310245216,1704414688409,-638.74,0.00038356,2]
[310245217,1704414688419,-1358.51,0.00038356,2]
[310245218,1704414688428,-1081.26,0.00038356,2]
[310245219,1704414688438,-556.12,0.00038356,2]
[310245220,1704414688447,-1314.11,0.00038356,2]
[310245221,1704414688457,-4577.94,0.00038356,2]
[310245222,1704414688467,-21013.31,0.00038356,2]
[310245223,1704414688476,-32339.89,0.00038356,2]
[310245224,1704414688486,-2096.26,0.00038356,2]
[310245225,1704414688495,-612.35,0.00038356,2]
[310245226,1704414688504,-509.98,0.00038356,2]
[310245227,1704414688513,-980.38,0.00038356,2]
[310245228,1704414688522,-970.25,0.00038356,2]
[310245229,1704414688532,-153.84,0.00038356,2]
[310245230,1704414688541,-352.808297,0.00038356,14]
[310245231,1704414688551,-155.0,0.00038357,2]
[310245232,1704414688560,-448.35,0.0003837,2]
[310245233,1704414688569,-157.40105,0.00038398,2]
[310245234,1704414688578,-1000.0,0.000384,2]
[310245235,1704414688587,-770.0,0.000384,2]
[310245236,1704414688597,-2000.0,0.000384,2]
[310245237,1704414688606,-3000.0,0.000384,2]
[310245238,1704414688615,-500.0,0.000384,2]
[310245239,1704414688625,-152.95511515,0.00038402,2]
[310245240,1704414688634,-150.0,0.00038412,2]
[310245241,1704414688644,-150.0,0.00038412,2]
[310245242,1704414688653,-150.0,0.00038412,2]
[310245243,1704414688662,-500.0,0.00038415,7]
[310245244,1704414688671,-150.0,0.00038428,2]
[310245245,1704414688680,-313.52,0.00038444,2]
[310245246,1704414688690,-313.52,0.00038444,2]
[310245247,1704414688699,-313.52,0.00038444,2]
[310245248,1704414688708,-416.99,0.00038444,2]
[310245249,1704414688717,-416.99,0.00038444,2]
[310245250,1704414688727,-313.52,0.00038444,2]
[310245251,1704414688736,-416.18,0.00038444,2]
[310245252,1704414688746,-313.52,0.00038444,2]
[310245253,1704414688755,-151.765019,0.00038445,14]
[310245254,1704414688764,-792.0,0.0003847,20]
[310245255,1704414688777,-154.0,0.00038478,2]
[310245256,1704414688786,-157.40105,0.00038498,2]
[310245257,1704414688795,-569.14550734,0.00038503,10]
[310245258,1704414688805,-167.0,0.00038521,2]
[310245259,1704414688814,-157.40105,0.00038598,2]
[310245260,1704414688823,-630.74918718,0.0003863,2]
[310245261,1704414688832,-512.12,0.0003863,2]
[310245262,1704414688841,-544.31,0.0003863,2]
[310245263,1704414688850,-500.0,0.0003863,2]
[310245264,1704414688859,-1124.47,0.0003863,2]
[310245265,1704414688869,-678.19,0.0003863,2]
[310245266,1704414688879,-500.0,0.0003863,2]
[310245267,1704414688888,-500.0,0.0003863,2]
[310245268,1704414688898,-750.66,0.0003863,2]
[310245269,1704414688907,-888.28,0.0003863,2]
[310245270,1704414688917,-723.54,0.0003863,2]
[310245271,1704414688926,-608.52,0.0003863,2]
[310245272,1704414688935,-500.0,0.0003863,2]
[310245273,1704414688945,-886.13,0.0003863,2]
[310245274,1704414688956,-501.68,0.0003863,2]
[310245275,1704414688966,-1517.74,0.0003863,2]
[310245276,1704414688975,-584.65,0.0003863,2]
[310245277,1704414688985,-939.87,0.0003863,2]
[310245278,1704414688994,-647.31,0.0003863,2]
[310245279,1704414689003,-2022.65,0.0003863,2]
[310245280,1704414689013,-919.18,0.0003863,2]
[310245281,1704414689023,-808.57,0.0003863,2]
[310245282,1704414689032,-1239.85,0.0003863,4]
[310245283,1704414689041,-695.92,0.0003863,2]
[310245284,1704414689050,-1527.38,0.0003863,2]
[310245285,1704414689059,-970.8,0.0003863,2]
[310245286,1704414689069,-893.29,0.0003863,2]
[310245287,1704414689078,-6653.01,0.0003863,2]
[310245288,1704414689087,-1177.25,0.0003863,2]
[310245289,1704414689096,-1817.42,0.0003863,2]
[310245290,1704414689105,-1325.73,0.0003863,2]
[310245291,1704414689114,-638.74,0.0003863,2]
[310245292,1704414689123,-1358.51,0.0003863,2]
[310245293,1704414689132,-1081.26,0.0003863,2]
[310245294,1704414689143,-556.12,0.0003863,2]
[310245295,1704414689153,-1314.11,0.0003863,2]
[310245296,1704414689162,-4577.94,0.0003863,2]
[310245297,1704414689172,-21013.31,0.0003863,2]
[310245298,1704414689182,-32339.89,0.0003863,2]
[310245299,1704414689191,-2096.26,0.0003863,2]
[310245300,1704414689200,-612.35,0.0003863,2]
[310245301,1704414689210,-509.98,0.0003863,2]
[310245302,1704414689220,-980.38,0.0003863,2]
[310245303,1704414689230,-970.25,0.0003863,2]
[310245304,1704414689239,-157.0,0.0003863,14]
[310245305,1704414689249,-151.0,0.0003863,7]
[310245306,1704414689259,-169.0,0.0003866,60]
[310245307,1704414689269,-169.0,0.0003867,60]
[310245308,1704414689279,-169.0,0.0003868,60]
[310245309,1704414689289,-500.0,0.00038689,7]
[310245310,1704414689300,-977.7073741,0.00038689,2]
[310245311,1704414689310,-157.40105,0.00038698,2]
[310245312,1704414689319,-13018.92,0.000387,7]
[310245313,1704414689328,-1321.8296515,0.00038707,2]
[310245314,1704414689337,-50000.0,0.00038734,30]
[310245315,1704414689348,-522.67,0.00038767,2]
[310245316,1704414689358,-157.40105,0.00038798,2]
[310245317,1704414689367,-38092.28961771,0.000388,4]
[310245318,1704414689377,-195.79,0.00038836,2]
[310245319,1704414689387,-792.0,0.00038862,20]
[310245320,1704414689397,-400.36,0.00038879,2]
[310245321,1704414689407,-938.08,0.00038879,2]
[310245322,1704414689416,-400.36,0.00038879,2]
[310245323,1704414689426,-938.08,0.00038879,2]
[310245324,1704414689435,-938.08,0.00038879,2]
[310245325,1704414689444,-400.36,0.00038879,2]
[310245326,1704414689454,-400.36,0.00038879,2]
[310245327,1704414689463,-938.08,0.00038879,2]
[310245328,1704414689473,-938.08,0.00038879,2]
[310245329,1704414689482,-400.36,0.00038879,2]
[310245330,1704414689491,-938.08,0.00038879,2]
[310245331,1704414689500,-400.36,0.00038879,2]
[310245332,1704414689510,-938.08,0.00038879,2]
[310245333,1704414689519,-400.36,0.00038879,2]
[310245334,1704414689529,-400.36,0.00038879,2]
[310245335,1704414689540,-938.08,0.00038879,2]
[310245336,1704414689551,-400.36,0.00038879,2]
[310245337,1704414689560,-938.08,0.00038879,2]
[310245338,1704414689569,-938.08,0.00038879,2]
[310245339,1704414689578,-400.36,0.00038879,2]
[310245340,1704414689588,-938.08,0.00038879,2]
[310245341,1704414689597,-400.36,0.00038879,2]
[310245342,1704414689607,-938.08,0.00038879,2]
[310245343,1704414689618,-400.36,0.00038879,2]
[310245344,1704414689629,-938.08,0.00038879,2]
[310245345,1704414689638,-400.36,0.00038879,2]
[310245346,1704414689650,-938.08,0.00038879,2]
[310245347,1704414689660,-400.36,0.00038879,2]
[310245348,1704414689670,-400.36,0.00038879,2]
[310245349,1704414689681,-938.08,0.00038879,2]
[310245350,1704414689691,-805.49,0.00038879,2]
[310245351,1704414689700,-215.97,0.00038879,2]
[310245352,1704414689710,-512.12,0.00038904,2]
[310245353,1704414689719,-544.31,0.00038904,2]
[310245354,1704414689728,-500.0,0.00038904,2]
[310245355,1704414689737,-1124.47,0.00038904,2]
[310245356,1704414689746,-678.19,0.00038904,2]
[310245357,1704414689754,-254.1,0.00038904,2]
[310245358,1704414689764,-194.74,0.00038904,2]
[310245359,1704414689775,-750.66,0.00038904,2]
[310245360,1704414689785,-888.28,0.00038904,2]
[310245361,1704414689795,-723.54,0.00038904,2]
[310245362,1704414689805,-608.52,0.00038904,2]
[310245363,1704414689814,-500.0,0.00038904,2]
[310245364,1704414689823,-886.13,0.00038904,2]
[310245365,1704414689833,-501.68,0.00038904,2]
[310245366,1704414689842,-1517.74,0.00038904,2]
[310245367,1704414689851,-584.65,0.00038904,2]
[310245368,1704414689860,-939.87,0.00038904,2]
[310245369,1704414689870,-647.31,0.00038904,2]
[310245370,1704414689879,-919.18,0.00038904,2]
[310245371,1704414689890,-2022.65,0.00038904,2]
[310245372,1704414689900,-808.57,0.00038904,2]
[310245373,1704414689909,-1239.85,0.00038904,4]
[310245374,1704414689918,-695.92,0.00038904,2]
[310245375,1704414689927,-1527.38,0.00038904,2]
[310245376,1704414689937,-970.8,0.00038904,2]
[310245377,1704414689946,-893.29,0.00038904,2]
[310245378,1704414689955,-6653.01,0.00038904,2]
[310245379,1704414689966,-1177.25,0.00038904,2]
[310245380,1704414689975,-1817.42,0.00038904,2]
[310245381,1704414689985,-1325.73,0.00038904,2]
[310245382,1704414689994,-638.74,0.00038904,2]
[310245383,1704414690003,-1358.51,0.00038904,2]
[310245384,1704414690013,-1081.26,0.00038904,2]
[310245385,1704414690022,-556.12,0.00038904,2]
[310245386,1704414690031,-1314.11,0.00038904,2]
[310245387,1704414690040,-4577.94,0.00038904,2]
[310245388,1704414690049,-21013.31,0.00038904,2]
[310245389,1704414690058,-32339.89,0.00038904,2]
[310245390,1704414690068,-2096.26,0.00038904,2]
[310245391,1704414690078,-612.35,0.00038904,2]
[310245392,1704414690087,-509.98,0.00038904,2]
[310245393,1704414690097,-980.38,0.00038904,2]
[310245394,1704414690107,-970.25,0.00038904,2]
[310245395,1704414690117,-500.0,0.00038962,7]
[310245396,1704414690127,-11583.449292,0.0003897,2]
[310245397,1704414690137,-157.40105,0.00038998,2]
[310245398,1704414690148,-8942.98654321,0.00039,4]
[310245399,1704414690158,-973.27585947,0.00039,4]
[310245400,1704414690167,-2037.44382663,0.00039,2]
[310245401,1704414690176,-196.52296058,0.00039,4]
[310245402,1704414690185,-1760.82,0.00039,4]
[310245403,1704414690195,-300.0,0.00039,15]
[310245404,1704414690206,-550.0,0.00039,3]
[310245405,1704414690334,-230.0,0.00039,2]
[310245406,1704414690347,-191.92542347,0.00039005,14]
[310245407,1704414690356,-157.40105,0.00039098,2]
[310245408,1704414690365,-191.92542347,0.0003915,14]
[310245409,1704414690375,-522.67,0.00039178,2]
[310245410,1704414690384,-512.19,0.00039178,2]
[310245411,1704414690394,-544.32,0.00039178,2]
[310245412,1704414690405,-390.01562939,0.00039178,2]
[310245413,1704414690416,-1124.55,0.00039178,2]
[310245414,1704414690426,-678.42265193,0.00039178,2]
[310245415,1704414690435,-750.67050606,0.00039178,2]
[310245416,1704414690446,-888.2941246,0.00039178,2]
[310245417,1704414690456,-723.76,0.00039178,2]
[310245418,1704414690465,-608.68,0.00039178,2]
[310245419,1704414690475,-292.56,0.00039178,2]
[310245420,1704414690484,-886.35,0.00039178,2]
[310245421,1704414690495,-501.81,0.00039178,2]
[310245422,1704414690505,-1517.88924711,0.00039178,2]
[310245423,1704414690514,-584.72,0.00039178,2]
[310245424,1704414690525,-940.07326717,0.00039178,2]
[310245425,1704414690536,-647.3543512,0.00039178,2]
[310245426,1704414690547,-919.33,0.00039178,2]
[310245427,1704414690557,-2022.84655595,0.00039178,2]
[310245428,1704414690567,-808.61,0.00039178,2]
[310245429,1704414690576,-1239.93,0.00039178,4]
[310245430,1704414690585,-695.98,0.00039178,2]
[310245431,1704414690595,-1527.57,0.00039178,2]
[310245432,1704414690604,-970.91,0.00039178,2]
[310245433,1704414690615,-893.41,0.00039178,2]
[310245434,1704414690624,-6653.0629,0.00039178,2]
[310245435,1704414690633,-1177.37,0.00039178,2]
[310245436,1704414690644,-1817.52,0.00039178,2]
[310245437,1704414690653,-1325.84354253,0.00039178,2]
[310245438,1704414690662,-638.96,0.00039178,2]
[310245439,1704414690672,-1358.5604129,0.00039178,2]
[310245440,1704414690682,-1081.44235078,0.00039178,2]
[310245441,1704414690691,-556.2599146,0.00039178,2]
[310245442,1704414690701,-1314.29,0.00039178,2]
[310245443,1704414690711,-4578.05,0.00039178,2]
[310245444,1704414690721,-21013.53191521,0.00039178,2]
[310245445,1704414690731,-32340.0358,0.00039178,2]
[310245446,1704414690740,-2096.40123909,0.00039178,2]
[310245447,1704414690750,-612.54,0.00039178,2]
[310245448,1704414690759,-510.08,0.00039178,2]
[310245449,1704414690771,-980.6,0.00039178,2]
[310245450,1704414690782,-970.41,0.00039178,2]
[310245451,1704414690791,-4256.05,0.00039178,2]
[310245452,1704414690801,-158.44572,0.00039178,7]
[310245453,1704414690811,-151.0,0.00039178,7]
[310245454,1704414690821,-284.159398,0.00039178,7]
[310245455,1704414690830,-216.58934,0.00039178,7]
[310245456,1704414690840,-216.58934,0.00039178,7]
[310245457,1704414690850,-495.900744,0.00039178,7]
[310245458,1704414690859,-495.900744,0.00039178,7]
[310245459,1704414690869,-157.40105,0.00039198,2]
[310245460,1704414690878,-13018.92,0.000392,7]
[310245461,1704414690887,-500.0,0.00039235,7]
[310245462,1704414690898,-195.42575551,0.00039255,20]
[310245463,1704414690908,-792.0,0.00039255,20]
[310245464,1704414690917,-870.92004092,0.00039255,20]
[310245465,1704414690927,-1000.0,0.0003926,2]
[310245466,1704414690937,-312.38,0.00039266,2]
[310245467,1704414690948,-153.84,0.00039269,2]
[310245468,1704414690958,-315.0,0.0003928,2]
[310245469,1704414690967,-19602.0,0.0003928,2]
[310245470,1704414690977,-150.0,0.0003928,2]
[310245471,1704414690986,-830.0,0.0003928,2]
[310245472,1704414690995,-157.40105,0.00039298,2]
[310245473,1704414691006,-155.05696804,0.0003931,14]
[310245474,1704414691015,-155.05696804,0.00039348,14]
[310245475,1704414691025,-150.0,0.00039366,2]
[310245476,1704414691034,-157.40105,0.00039398,2]
[310245477,1704414691043,-352.808297,0.00039452,14]
[310245478,1704414691053,-157.40105,0.00039498,2]
[310245479,1704414691062,-4625.45,0.000395,7]
[310245480,1704414691073,-961.04,0.00039508,7]
[310245481,1704414691083,-11459.8724264,0.00039588,4]
[310245482,1704414691092,-522.67,0.00039589,2]
[310245483,1704414691102,-157.40105,0.00039598,2]
[310245484,1704414691111,-792.0,0.00039647,20]
[310245485,1704414691120,-500.0,0.0003965,2]
[310245486,1704414691130,-2107.04,0.00039654,4]
[310245487,1704414691139,-653.35,0.00039671,90]
[310245488,1704414691150,-500.0,0.00039671,90]
[310245489,1704414691159,-154.0,0.00039675,2]
[310245490,1704414691168,-157.40105,0.00039698,2]
[310245491,1704414691177,-6142.90479907,0.000397,22]
[310245492,1704414691187,-1843.73,0.000397,5]
[310245493,1704414691196,-13018.92,0.000397,7]
[310245494,1704414691206,-2000.0,0.00039726,30]
[310245495,1704414691216,-155.0,0.00039727,2]
[310245496,1704414691225,-310.57154235,0.00039788,4]
[310245497,1704414691236,-157.40105,0.00039798,2]
[310245498,1704414691246,-979.94393324,0.000398,4]
[310245499,1704414691255,-152.95511515,0.00039811,5]
[310245500,1704414691267,-855.81,0.00039838,2]
[310245501,1704414691276,-151.21,0.00039838,2]
[310245502,1704414691286,-173.29,0.00039838,2]
[310245503,1704414691296,-416.99,0.00039838,2]
[310245504,1704414691305,-150.0,0.00039838,2]
[310245505,1704414691315,-150.0,0.00039838,2]
[310245506,1704414691325,-152.53,0.00039838,2]
[310245507,1704414691335,-416.99,0.00039838,2]
[310245508,1704414691345,-150.0,0.00039838,2]
[310245509,1704414691355,-313.52,0.00039838,2]
[310245510,1704414691364,-150.0,0.00039838,2]
[310245511,1704414691374,-313.52,0.00039838,2]
[310245512,1704414691383,-416.99,0.00039838,2]
[310245513,1704414691394,-150.0,0.00039838,2]
[310245514,1704414691403,-150.0,0.00039838,2]
[310245515,1704414691412,-313.52,0.00039838,2]
[310245516,1704414691422,-150.0,0.00039838,2]
[310245517,1704414691431,-150.0,0.00039838,2]
[310245518,1704414691441,-313.52,0.00039838,2]
[310245519,1704414691450,-416.99,0.00039838,2]
[310245520,1704414691459,-416.99,0.00039838,2]
[310245521,1704414691469,-313.52,0.00039838,2]
[310245522,1704414691478,-150.0,0.00039838,2]
[310245523,1704414691488,-416.99,0.00039838,2]
[310245524,1704414691498,-313.52,0.00039838,2]
[310245525,1704414691508,-313.52,0.00039838,2]
[310245526,1704414691517,-416.99,0.00039838,2]
[310245527,1704414691527,-416.99,0.00039838,2]
[310245528,1704414691537,-313.52,0.00039838,2]
[310245529,1704414691547,-416.99,0.00039838,2]
[310245530,1704414691556,-313.52,0.00039838,2]
[310245531,1704414691566,-416.99,0.00039838,2]
[310245532,1704414691575,-313.52,0.00039838,2]
[310245533,1704414691584,-416.99,0.00039838,2]
[310245534,1704414691593,-313.52,0.00039838,2]
[310245535,1704414691604,-416.99,0.00039838,2]
[310245536,1704414691613,-313.52,0.00039838,2]
[310245537,1704414691623,-313.52,0.00039838,2]
[310245538,1704414691632,-416.99,0.00039838,2]
[310245539,1704414691643,-416.99,0.00039838,2]
[310245540,1704414691652,-313.52,0.00039838,2]
[310245541,1704414691662,-416.99,0.00039838,2]
[310245542,1704414691671,-313.52,0.00039838,2]
[310245543,1704414691681,-416.99,0.00039838,2]
[310245544,1704414691690,-192.67,0.00039838,2]
[310245545,1704414691700,-416.99,0.00039838,2]
[310245546,1704414691710,-416.99,0.00039838,2]
[310245547,1704414691719,-411.14,0.00039838,2]
[310245548,1704414691729,-653.35,0.0003989,92]
[310245549,1704414691738,-500.0,0.0003989,91]
[310245550,1704414691747,-234.40105,0.00039898,2]
[310245551,1704414691756,-394.64432969,0.000399,2]
[310245552,1704414691766,-151.0,0.00039904,2]
[310245553,1704414691778,-250.49088,0.00039904,2]
[310245554,1704414691787,-1432.9788389,0.00039953,2]
[310245555,1704414691797,-17150.1722479,0.00039953,2]
[310245556,1704414691807,-18130.68973475,0.00039966,2]
[310245557,1704414691817,-18130.68973475,0.00039969,2]
[310245558,1704414691827,-1401.9156806,0.00039973,2]
[310245559,1704414691837,-1259.7449178,0.00039973,2]
[310245560,1704414691846,-529.320058,0.00039973,2]
[310245561,1704414691855,-14725.5672699,0.00039973,2]
[310245562,1704414691866,-18130.68973475,0.00039977,2]
[310245563,1704414691875,-3407.35433293,0.0003998,3]
[310245564,1704414691885,-13035.1985087,0.0003998,4]
[310245565,1704414691894,-350.19744179,0.0003998,4]
[310245566,1704414691903,-642063.67820554,0.0003998,4]
[310245567,1704414691913,-151.0,0.0003998,7]
[310245568,1704414691922,-293.65703,0.0003998,7]
[310245569,1704414691931,-151.0,0.0003998,7]
[310245570,1704414691941,-151.0,0.0003998,7]
[310245571,1704414691950,-151.0,0.0003998,7]
[310245572,1704414691959,-194.4617,0.0003998,7]
[310245573,1704414691969,-151.0,0.0003998,7]
[310245574,1704414691978,-212.581512,0.0003998,7]
[310245575,1704414691988,-212.581512,0.0003998,7]
[310245576,1704414691997,-151.0,0.0003998,7]
[310245577,1704414692007,-520.818755,0.0003998,7]
[310245578,1704414692016,-520.818755,0.0003998,7]
[310245579,1704414692025,-151.0,0.0003998,7]
[310245580,1704414692035,-1444.827588,0.0003998,7]
[310245581,1704414692044,-1444.827588,0.0003998,7]
[310245582,1704414692054,-151.0,0.0003998,7]
[310245583,1704414692064,-185.83076,0.0003998,7]
[310245584,1704414692074,-169.65,0.0003998,60]
[310245585,1704414692084,-151.891817,0.0003998,7]
[310245586,1704414692094,-151.0,0.0003998,7]
[310245587,1704414692103,-182.373191,0.0003998,7]
[310245588,1704414692113,-151.0,0.00039985,7]
[310245589,1704414692122,-151.36920845,0.00039985,14]
[310245590,1704414692132,-18130.68973475,0.00039985,2]
[310245591,1704414692142,-158.961258,0.00039987,4]
[310245592,1704414692151,-150.0,0.00039987,2]
[310245593,1704414692160,-2143.4076964,0.00039988,4]
[310245594,1704414692170,-516.38195393,0.00039988,4]
[310245595,1704414692179,-1946.47830428,0.00039988,4]
[310245596,1704414692188,-2087.35380959,0.00039988,4]
[310245597,1704414692198,-4002.11843427,0.00039988,4]
[310245598,1704414692207,-544.0632077,0.00039988,4]
[310245599,1704414692217,-155.21311001,0.00039988,4]
[310245600,1704414692228,-541.17477191,0.00039988,4]
[310245601,1704414692238,-3213.45580477,0.00039988,2]
[310245602,1704414692248,-249.91772004,0.00039988,4]
[310245603,1704414692258,-579.40411831,0.00039988,4]
[310245604,1704414692268,-316.61650798,0.00039988,2]
[310245605,1704414692278,-7066.28607176,0.00039988,4]
[310245606,1704414692288,-3005.28149969,0.00039989,2]
[310245607,1704414692298,-2859.73053446,0.0003999,24]
[310245608,1704414692307,-2208.0,0.0003999,2]
[310245609,1704414692316,-169.0,0.0003999,60]
[310245610,1704414692326,-1726.74686123,0.00039994,2]
[310245611,1704414692336,-1000.0,0.00039999,30]
[310245612,1704414692345,-2672.98935789,0.0004,4]
[310245613,1704414692355,-490.39267423,0.0004,4]
[310245614,1704414692365,-3084.15184289,0.0004,4]
[310245615,1704414692375,-2264.96533666,0.0004,4]
[310245616,1704414692385,-40132.29138399,0.0004,2]
[310245617,1704414692397,-500.0,0.0004,120]
[310245618,1704414692406,-2790.12835836,0.0004,5]
[310245619,1704414692415,-7819.60788723,0.0004,4]
[310245620,1704414692426,-1082.09088048,0.0004,4]
[310245621,1704414692437,-1059.31466697,0.0004,10]
[310245622,1704414692447,-158.00802893,0.0004,30]
[310245623,1704414692457,-155.0,0.0004,4]
[310245624,1704414692468,-2574.83728146,0.0004,4]
[310245625,1704414692478,-3200.0,0.0004,4]
[310245626,1704414692488,-760.34660297,0.0004,4]
[310245627,1704414692498,-232548.81881409,0.0004,15]
[310245628,1704414692508,-33606.60669415,0.0004,4]
[310245629,1704414692518,-2006.22348661,0.0004,4]
[310245630,1704414692527,-21470.65286544,0.0004,10]
[310245631,1704414692537,-54140.72602622,0.0004,4]
[310245632,1704414692546,-582.84724461,0.0004,30]
[310245633,1704414692555,-291.48058922,0.0004,4]
[310245634,1704414692565,-882.89324695,0.0004,4]
[310245635,1704414692574,-14121.87645702,0.0004,4]
[310245636,1704414692583,-193.34030012,0.0004,2]
[310245637,1704414692593,-157.94027106,0.0004,4]
[310245638,1704414692602,-282.01678762,0.0004,4]
[310245639,1704414692612,-155.0,0.0004,4]
[310245640,1704414692621,-5768.0,0.0004,2]
[310245641,1704414692631,-250.0,0.0004,4]
[310245642,1704414692640,-250.0,0.0004,4]
[310245643,1704414692805,-250.0,0.0004,4]
[310245644,1704414692817,-250.0,0.0004,4]
[310245645,1704414692827,-250.0,0.0004,4]
[310245646,1704414692839,-470.4,0.0004,4]
[310245647,1704414692849,-155.0,0.0004,4]
[310245648,1704414692859,-10000.0,0.0004,3]
[310245649,1704414692871,-2000.0,0.0004,30]
[310245650,1704414692881,-2000.0,0.0004,30]
[310245651,1704414692891,-2000.0,0.0004,30]
[310245652,1704414692902,-2596.0,0.0004,30]
[310245653,1704414692912,-150.372658,0.0004,5]
[310245654,1704414692921,-31977.04874715,0.0004,7]
[310245655,1704414692931,-300.0,0.0004,16]
[310245656,1704414692941,-1296.27085465,0.0004,10]
[310245657,1704414692951,-1121.88459995,0.0004,30]
[310245658,1704414692961,-8310.0,0.0004,7]
[310245659,1704414692970,-176.23979478,0.0004,10]
[310245660,1704414692980,-449.89001898,0.0004,10]
[310245661,1704414692990,-1239.87164674,0.0004,30]
[310245662,1704414693000,-158.41496304,0.0004,10]
[310245663,1704414693010,-14341.35840052,0.0004,7]
[310245664,1704414693019,-550.99569039,0.0004,10]
[310245665,1704414693029,-1372.06328505,0.0004,30]
[310245666,1704414693038,-966.23974465,0.0004,10]
[310245667,1704414693048,-952.68196914,0.0004,30]
[310245668,1704414693057,-255.0,0.0004,12]